fUSD/lending_fUSD_20250217
["ID","MTS","AMOUNT","RATE_DAILY","PERIOD"]
[353355410,1739793051708,-500.0,0.00013698,2]
[353355411,1739793051718,-500.0,0.00013698,2]
[353355412,1739793051728,-3652.14,0.00013698,2]
[353355413,1739793051737,-2177.44,0.00013698,2]
[353355414,1739793051747,-2713.05,0.00013698,2]
[353355415,1739793051756,-151.0,0.00013698,2]
[353355416,1739793051766,-151.0,0.00013698,2]
[353355417,1739793051775,-151.0,0.00013698,2]
[353355418,1739793051784,-500.0,0.00013698,2]
[353355419,1739793051793,-500.0,0.00013698,2]
[353355420,1739793051803,-500.0,0.00013698,2]
[353355421,1739793051813,-500.0,0.00013698,2]
[353355422,1739793051822,-500.0,0.00013698,2]
[353355423,1739793051831,-500.0,0.00013698,2]
[353355424,1739793051841,-500.0,0.00013698,2]
[353355425,1739793051850,-500.0,0.00013698,2]
[353355426,1739793051859,-500.0,0.00013698,2]
[353355427,1739793051869,-500.0,0.00013698,2]
[353355428,1739793051878,-500.0,0.00013698,2]
[353355429,1739793051887,-500.0,0.00013698,2]
[353355430,1739793051897,-508.57914277,0.00013698,2]
[353355431,1739793051906,-308.32282348,0.00013698,2]
[353355432,1739793051915,-500.0,0.00013698,2]
[353355433,1739793051925,-2647.88,0.00013698,2]
[353355434,1739793051935,-500.0,0.00013698,2]
[353355435,1739793051944,-1334.65,0.00013698,2]
[353355436,1739793051953,-658.15,0.00013698,2]
[353355437,1739793051962,-500.0,0.00013698,2]
[353355438,1739793051971,-600.5055646,0.00013698,2]
[353355439,1739793051980,-500.0,0.00013698,2]
[353355440,1739793051989,-2246.75,0.00013698,2]
[353355441,1739793051998,-500.0,0.00013698,2]
[353355442,1739793052007,-2568.69,0.00013698,2]
[353355443,1739793052015,-500.0,0.00013698,2]
[353355444,1739793052025,-500.0,0.00013698,2]
[353355445,1739793052034,-506.40552909,0.00013698,2]
[353355446,1739793052043,-500.0,0.00013698,2]
[353355447,1739793052052,-500.0,0.00013698,2]
[353355448,1739793052062,-2163.62,0.00013698,2]
[353355449,1739793052071,-1826.06,0.00013698,2]
[353355450,1739793052080,-220.18975779,0.00013698,2]
[353355451,1739793052089,-501.88677955,0.00013698,2]
[353355452,1739793052100,-500.0,0.00013698,2]
[353355453,1739793052109,-2470.24,0.00013698,2]
[353355454,1739793052118,-503.85410276,0.00013698,2]
[353355455,1739793052127,-500.0,0.00013698,2]
[353355456,1739793052136,-1619.51,0.00013698,2]
[353355457,1739793052148,-500.0,0.00013698,2]
[353355458,1739793052158,-500.6396317,0.00013698,2]
[353355459,1739793052167,-500.0,0.00013698,2]
[353355460,1739793052176,-1167.85,0.00013698,2]
[353355461,1739793052185,-500.0,0.00013698,2]
[353355462,1739793052194,-556.14351136,0.00013698,2]
[353355463,1739793052204,-501.6613236,0.00013698,2]
[353355464,1739793052214,-1268.51,0.00013698,2]
[353355465,1739793052225,-2619.47,0.00013698,2]
[353355466,1739793052235,-2076.17,0.00013698,2]
[353355467,1739793052245,-874.45,0.00013698,2]
[353355468,1739793052254,-500.0,0.00013698,2]
[353355469,1739793052264,-500.0,0.00013698,2]
[353355470,1739793052273,-500.0,0.00013698,2]
[353355471,1739793052283,-312.82838253,0.00013698,2]
[353355472,1739793053316,-302.11302828,0.00013698,2]
[353355473,1739793053328,-1570.88697172,0.00013698,2]
[353355474,1739793053337,-187.17161747,0.00013698,2]
[353355475,1739793053348,-2573.24,0.00013698,2]
[353355476,1739793053357,-500.0,0.00013698,2]
[353355477,1739793053367,-1477.99,0.00013698,2]
[353355478,1739793053376,-500.0,0.00013698,2]
[353355479,1739793053384,-500.0,0.00013698,2]
[353355480,1739793053394,-500.0,0.00013698,2]
[353355481,1739793053403,-1280.38,0.00013698,2]
[353355482,1739793053412,-1276.58,0.00013698,2]
[353355483,1739793053421,-500.0,0.00013698,2]
[353355484,1739793053430,-500.0,0.00013698,2]
[353355485,1739793053439,-2099.72,0.00013698,2]
[353355486,1739793053448,-500.0,0.00013698,2]
[353355487,1739793053458,-500.0,0.00013698,2]
[353355488,1739793053467,-1876.66,0.00013698,2]
[353355489,1739793053477,-500.0,0.00013698,2]
[353355490,1739793053486,-1638.84,0.00013698,2]
[353355491,1739793053495,-500.0,0.00013698,2]
[353355492,1739793053504,-500.0,0.00013698,2]
[353355493,1739793053514,-5992.24,0.00013698,2]
[353355494,1739793053524,-1715.4,0.00013698,2]
[353355495,1739793053533,-500.0,0.00013698,2]
[353355496,1739793053543,-504.13699974,0.00013698,2]
[353355497,1739793053553,-500.0,0.00013698,2]
[353355498,1739793053562,-500.0,0.00013698,2]
[353355499,1739793053572,-500.0,0.00013698,2]
[353355500,1739793053582,-2477.9,0.00013698,2]
[353355501,1739793053591,-2099.19,0.00013698,2]
[353355502,1739793053600,-500.0,0.00013698,2]
[353355503,1739793053609,-500.0,0.00013698,2]
[353355504,1739793053619,-500.0,0.00013698,2]
[353355505,1739793053629,-500.0,0.00013698,2]
[353355506,1739793053638,-500.0,0.00013698,2]
[353355507,1739793053647,-500.0,0.00013698,2]
[353355508,1739793053656,-500.0,0.00013698,2]
[353355509,1739793053666,-3065.67,0.00013698,2]
[353355510,1739793053675,-500.0,0.00013698,2]
[353355511,1739793053685,-500.0,0.00013698,2]
[353355512,1739793053694,-500.0,0.00013698,2]
[353355513,1739793053704,-712.38,0.00013698,2]
[353355514,1739793053713,-500.0,0.00013698,2]
[353355515,1739793053724,-504.15202984,0.00013698,2]
[353355516,1739793053734,-500.0,0.00013698,2]
[353355517,1739793053743,-500.0,0.00013698,2]
[353355518,1739793053752,-500.0,0.00013698,2]
[353355519,1739793053761,-500.0,0.00013698,2]
[353355520,1739793053771,-576.79621403,0.00013698,2]
[353355521,1739793053780,-507.46815431,0.00013698,2]
[353355522,1739793053789,-500.0,0.00013698,2]
[353355523,1739793053798,-534.76,0.00013698,2]
[353355524,1739793053807,-776.42,0.00013698,2]
[353355525,1739793053817,-202.634269,0.00013698,2]
[353355526,1739793053826,-202.634269,0.00013698,2]
[353355527,1739793053835,-151.0,0.00013698,2]
[353355528,1739793053845,-202.634269,0.00013698,2]
[353355529,1739793053854,-503.68244561,0.00013698,2]
[353355530,1739793053864,-151.0,0.00013698,2]
[353355531,1739793053874,-301.606785,0.00013698,2]
[353355532,1739793053883,-500.0,0.00013698,2]
[353355533,1739793053893,-151.0,0.00013698,2]
[353355534,1739793053902,-507.90733075,0.00013698,2]
[353355535,1739793053911,-1721.36,0.00013698,2]
[353355536,1739793053920,-151.0,0.00013698,2]
[353355537,1739793053929,-507.70732786,0.00013698,2]
[353355538,1739793054141,-1017.07,0.00013698,2]
[353355539,1739793054153,-1000.0,0.00013698,2]
[353355540,1739793054162,-151.0,0.00013698,2]
[353355541,1739793054171,-500.0,0.00013698,2]
[353355542,1739793054181,-500.0,0.00013698,2]
[353355543,1739793054191,-202.634269,0.00013698,2]
[353355544,1739793054201,-202.634269,0.00013698,2]
[353355545,1739793054210,-2261.76,0.00013698,2]
[353355546,1739793054220,-202.634269,0.00013698,2]
[353355547,1739793054231,-151.0,0.00013698,2]
[353355548,1739793054240,-500.0,0.00013698,2]
[353355549,1739793054249,-151.0,0.00013698,2]
[353355550,1739793054258,-500.0,0.00013698,2]
[353355551,1739793054267,-151.0,0.00013698,2]
[353355552,1739793054276,-500.0,0.00013698,2]
[353355553,1739793054285,-151.0,0.00013698,2]
[353355554,1739793054294,-151.0,0.00013698,2]
[353355555,1739793054303,-2396.49,0.00013698,2]
[353355556,1739793054312,-151.0,0.00013698,2]
[353355557,1739793054321,-500.0,0.00013698,2]
[353355558,1739793054331,-625.22632406,0.00013698,2]
[353355559,1739793054341,-1259.11,0.00013698,2]
[353355560,1739793054351,-261.803828,0.00013698,2]
[353355561,1739793054360,-507.47377878,0.00013698,2]
[353355562,1739793054370,-500.0,0.00013698,2]
[353355563,1739793054380,-725.58,0.00013698,2]
[353355564,1739793054390,-500.0,0.00013698,2]
[353355565,1739793054399,-500.0,0.00013698,2]
[353355566,1739793054408,-1668.99,0.00013698,2]
[353355567,1739793054417,-500.0,0.00013698,2]
[353355568,1739793054426,-500.0,0.00013698,2]
[353355569,1739793054436,-3103.57,0.00013698,2]
[353355570,1739793054445,-1625.99,0.00013698,2]
[353355571,1739793054454,-1910.25,0.00013698,2]
[353355572,1739793054463,-526.57948841,0.00013698,2]
[353355573,1739793054472,-500.0,0.00013698,2]
[353355574,1739793054481,-500.0,0.00013698,2]
[353355575,1739793054490,-500.0,0.00013698,2]
[353355576,1739793054499,-500.0,0.00013698,2]
[353355577,1739793054508,-1814.64,0.00013698,2]
[353355578,1739793054517,-535.26,0.00013698,2]
[353355579,1739793054527,-500.0,0.00013698,2]
[353355580,1739793054536,-500.0,0.00013698,2]
[353355581,1739793054545,-500.0,0.00013698,2]
[353355582,1739793054554,-500.0,0.00013698,2]
[353355583,1739793054563,-500.0,0.00013698,2]
[353355584,1739793054573,-1380.32,0.00013698,2]
[353355585,1739793054581,-701.32,0.00013698,2]
[353355586,1739793054591,-500.0,0.00013698,2]
[353355587,1739793054600,-500.0,0.00013698,2]
[353355588,1739793054609,-500.0,0.00013698,2]
[353355589,1739793054618,-990.54,0.00013698,2]
[353355590,1739793054628,-500.0,0.00013698,2]
[353355591,1739793054637,-3811.7,0.00013698,2]
[353355592,1739793054646,-500.0,0.00013698,2]
[353355593,1739793054655,-500.0,0.00013698,2]
[353355594,1739793054665,-2994.51,0.00013698,2]
[353355595,1739793054674,-500.0,0.00013698,2]
[353355596,1739793054683,-500.0,0.00013698,2]
[353355597,1739793054693,-1265.78,0.00013698,2]
[353355598,1739793054702,-500.0,0.00013698,2]
[353355599,1739793054711,-500.0,0.00013698,2]
[353355600,1739793054719,-500.0,0.00013698,2]
[353355601,1739793054729,-1804.21,0.00013698,2]
[353355602,1739793054738,-500.0,0.00013698,2]
[353355603,1739793054748,-835.49,0.00013698,2]
[353355604,1739793054757,-304.53541682,0.00013698,2]
[353355605,1739793054767,-500.0,0.00013698,2]
[353355606,1739793054777,-500.0,0.00013698,2]
[353355607,1739793054787,-1651.85,0.00013698,2]
[353355608,1739793054797,-500.0,0.00013698,2]
[353355609,1739793054807,-500.0,0.00013698,2]
[353355610,1739793054816,-500.0,0.00013698,2]
[353355611,1739793054826,-500.0,0.00013698,2]
[353355612,1739793054836,-500.0,0.00013698,2]
[353355613,1739793054845,-500.0,0.00013698,2]
[353355614,1739793054855,-537.75244265,0.00013698,2]
[353355615,1739793054866,-500.0,0.00013698,2]
[353355616,1739793054875,-500.0,0.00013698,2]
[353355617,1739793054886,-500.0,0.00013698,2]
[353355618,1739793054895,-2992.81,0.00013698,2]
[353355619,1739793054904,-500.0,0.00013698,2]
[353355620,1739793054914,-1345.62,0.00013698,2]
[353355621,1739793054924,-500.0,0.00013698,2]
[353355622,1739793054933,-763.15,0.00013698,2]
[353355623,1739793054943,-500.0,0.00013698,2]
[353355624,1739793054952,-501.84145718,0.00013698,2]
[353355625,1739793054962,-500.0,0.00013698,2]
[353355626,1739793054971,-1392.81,0.00013698,2]
[353355627,1739793054980,-500.0,0.00013698,2]
[353355628,1739793054989,-500.0,0.00013698,2]
[353355629,1739793054999,-197.895971,0.00013698,2]
[353355630,1739793055009,-197.895971,0.00013698,2]
[353355631,1739793055019,-151.0,0.00013698,2]
[353355632,1739793055028,-500.0,0.00013698,2]
[353355633,1739793055038,-1740.68,0.00013698,2]
[353355634,1739793055047,-197.895971,0.00013698,2]
[353355635,1739793055056,-500.0,0.00013698,2]
[353355636,1739793055065,-151.0,0.00013698,2]
[353355637,1739793055075,-500.0,0.00013698,2]
[353355638,1739793055084,-151.0,0.00013698,2]
[353355639,1739793055093,-151.0,0.00013698,2]
[353355640,1739793055102,-500.0,0.00013698,2]
[353355641,1739793055111,-731.91,0.00013698,2]
[353355642,1739793055121,-151.0,0.00013698,2]
[353355643,1739793055130,-151.0,0.00013698,2]
[353355644,1739793055139,-1068.05,0.00013698,2]
[353355645,1739793055153,-500.0,0.00013698,2]
[353355646,1739793055164,-500.0,0.00013698,2]
[353355647,1739793055175,-500.0,0.00013698,2]
[353355648,1739793055186,-197.895971,0.00013698,2]
[353355649,1739793055198,-500.0,0.00013698,2]
[353355650,1739793055208,-197.895971,0.00013698,2]
[353355651,1739793055221,-197.895971,0.00013698,2]
[353355652,1739793055230,-1006.98,0.00013698,2]
[353355653,1739793055239,-500.0,0.00013698,2]
[353355654,1739793055249,-2752.96,0.00013698,2]
[353355655,1739793055259,-500.0,0.00013698,2]
[353355656,1739793055270,-500.0,0.00013698,2]
[353355657,1739793055281,-500.0,0.00013698,2]
[353355658,1739793055292,-500.0,0.00013698,2]
[353355659,1739793055301,-500.0,0.00013698,2]
[353355660,1739793055310,-151.0,0.00013698,2]
[353355661,1739793055319,-544.24473178,0.00013698,2]
[353355662,1739793055328,-151.317489,0.00013698,2]
[353355663,1739793055339,-502.77408485,0.00013698,2]
[353355664,1739793055348,-500.58898515,0.00013698,2]
[353355665,1739793055358,-500.0,0.00013698,2]
[353355666,1739793055368,-766.37,0.00013698,2]
[353355667,1739793055378,-1601.03,0.00013698,2]
[353355668,1739793055387,-500.0,0.00013698,2]
[353355669,1739793055397,-500.0,0.00013698,2]
[353355670,1739793055406,-500.0,0.00013698,2]
[353355671,1739793055415,-500.0,0.00013698,2]
[353355672,1739793055425,-827.19,0.00013698,2]
[353355673,1739793055436,-500.0,0.00013698,2]
[353355674,1739793055447,-500.0,0.00013698,2]
[353355675,1739793055456,-500.0,0.00013698,2]
[353355676,1739793055466,-1118.09,0.00013698,2]
[353355677,1739793055477,-835.69,0.00013698,2]
[353355678,1739793055487,-2532.33,0.00013698,2]
[353355679,1739793055496,-500.0,0.00013698,2]
[353355680,1739793055506,-500.0,0.00013698,2]
[353355681,1739793055517,-500.0,0.00013698,2]
[353355682,1739793055526,-500.0,0.00013698,2]
[353355683,1739793055536,-538.04276194,0.00013698,2]
[353355684,1739793055603,-980.63723806,0.00013698,2]
[353355685,1739793055612,-1529.95,0.00013698,2]
[353355686,1739793055622,-500.0,0.00013698,2]
[353355687,1739793055631,-500.0,0.00013698,2]
[353355688,1739793055641,-331.51086587,0.00013698,2]
[353355689,1739793055650,-1899.4,0.00013698,2]
[353355690,1739793055660,-1373.17,0.00013698,2]
[353355691,1739793055670,-519.37919058,0.00013698,2]
[353355692,1739793055680,-306.37011658,0.00013698,2]
[353355693,1739793055690,-500.0,0.00013698,2]
[353355694,1739793055700,-500.0,0.00013698,2]
[353355695,1739793055710,-500.0,0.00013698,2]
[353355696,1739793055719,-500.0,0.00013698,2]
[353355697,1739793055730,-500.0,0.00013698,2]
[353355698,1739793055739,-500.0,0.00013698,2]
[353355699,1739793055750,-846.61,0.00013698,2]
[353355700,1739793055759,-503.09602669,0.00013698,2]
[353355701,1739793055768,-500.0,0.00013698,2]
[353355702,1739793055778,-671.73,0.00013698,2]
[353355703,1739793055787,-504.03599591,0.00013698,2]
[353355704,1739793055797,-506.84268259,0.00013698,2]
[353355705,1739793055806,-151.0,0.00013698,2]
[353355706,1739793055815,-151.0,0.00013698,2]
[353355707,1739793055824,-504.75731176,0.00013698,2]
[353355708,1739793055833,-2219.73,0.00013698,2]
[353355709,1739793055843,-151.0,0.00013698,2]
[353355710,1739793055853,-500.0,0.00013698,2]
[353355711,1739793055863,-1251.99,0.00013698,2]
[353355712,1739793055873,-500.0,0.00013698,2]
[353355713,1739793055883,-500.0,0.00013698,2]
[353355714,1739793055892,-500.0,0.00013699,2]
[353355715,1739793055901,-150.00000002,0.00013699,2]
[353355716,1739793055911,-4000.0,0.00013699,2]
[353355717,1739793055920,-162.57,0.00013699,2]
[353355718,1739793055930,-7381.72,0.00013699,2]
[353355719,1739793055939,-500.0,0.00013699,2]
[353355720,1739793055948,-200.0,0.00013699,2]
[353355721,1739793055958,-300.0,0.00013699,2]
[353355722,1739793055968,-151.0,0.00013699,2]
[353355723,1739793055977,-151.0,0.00013699,2]
[353355724,1739793055986,-151.0,0.00013699,2]
[353355725,1739793055996,-151.0,0.00013699,2]
[353355726,1739793056005,-151.0,0.00013699,2]
[353355727,1739793056014,-151.0,0.00013699,2]
[353355728,1739793056024,-235.958733,0.00013699,2]
[353355729,1739793056035,-235.958733,0.00013699,2]
[353355730,1739793056043,-151.0,0.00013699,2]
[353355731,1739793056053,-500.0,0.00013699,2]
[353355732,1739793056063,-542.52283416,0.00013699,2]
[353355733,1739793056073,-570.73,0.00013699,2]
[353355734,1739793056082,-570.73,0.00013699,2]
[353355735,1739793056091,-665.67,0.00013699,2]
[353355736,1739793056100,-665.67,0.00013699,2]
[353355737,1739793056110,-1837.97,0.00013699,2]
[353355738,1739793056120,-1837.97,0.00013699,2]
[353355739,1739793056130,-500.0,0.00013699,2]
[353355740,1739793056139,-500.0,0.00013699,2]
[353355741,1739793056151,-163.42975012,0.00013699,2]
[353355742,1739793057318,-500.0,0.00013698,2]
[353355743,1739793057327,-330.12969053,0.00013698,2]
[353355917,1739794231925,-150.0,9.591e-05,2]
[353355918,1739794231935,-150.0,9.607e-05,2]
[353355919,1739794231945,-1197.03453577,9.623e-05,2]
[353355920,1739794231955,-150.0,9.78e-05,2]
[353355921,1739794231965,-150.0,9.929e-05,2]
[353355922,1739794231975,-280.48515366,9.979e-05,2]
[353355923,1739794231985,-550.0,0.0001,2]
[353355924,1739794231995,-500.0,0.00010058,2]
[353355925,1739794232005,-1000.0,0.00010058,2]
[353355926,1739794232015,-360.74822013,0.00010058,2]
[353355927,1739794232037,-639.25177987,0.00010058,2]
[353355928,1739794232046,-490.08,0.00010058,2]
[353355929,1739794232055,-508.34,0.00010058,2]
[353355930,1739794232066,-509.21,0.00010058,2]
[353355931,1739794232075,-303.11822213,0.00010058,2]
[353355932,1739794232086,-200.14177787,0.00010058,2]
[353355933,1739794232095,-497.37,0.00010058,2]
[353355934,1739794232105,-379.88986664,0.00010058,2]
[353355935,1739794232116,-111.43013336,0.00010058,2]
[353355936,1739794232125,-509.02,0.00010058,2]
[353355937,1739794232135,-496.59,0.00010058,2]
[353355938,1739794232144,-491.34,0.00010058,2]
[353355939,1739794232154,-494.07,0.00010058,2]
[353355940,1739794232164,-150.0,0.00010127,2]
[353355941,1739794232175,-1060.0,0.0001013,2]
[353355942,1739794232185,-244.23,0.00010137,2]
[353355943,1739794232195,-150.0,0.00010147,2]
[353355944,1739794232205,-150.0,0.00010359,2]
[353355945,1739794232214,-150.0,0.00010492,2]
[353355946,1739794232223,-150.0,0.00010541,2]
[353355947,1739794232232,-150.0,0.0001055,2]
[353355948,1739794232241,-151.73,0.00010558,2]
[353355949,1739794232252,-152.89,0.00010558,2]
[353355950,1739794232261,-150.07,0.00010558,2]
[353355951,1739794232270,-151.57,0.00010558,2]
[353355952,1739794232279,-152.45,0.00010558,2]
[353355953,1739794232289,-152.38,0.00010558,2]
[353355954,1739794232298,-151.33,0.00010558,2]
[353355955,1739794232307,-150.0,0.00010568,2]
[353355956,1739794232316,-150.0,0.00010586,2]
[353355957,1739794232325,-150.0,0.00010596,2]
[353355958,1739794232335,-150.0,0.00010628,2]
[353355959,1739794232345,-493.68,0.0001066,2]
[353355960,1739794232355,-1060.0,0.00010663,2]
[353355961,1739794232365,-150.0,0.00010711,2]
[353355962,1739794232374,-150.0,0.00010777,2]
[353355963,1739794232383,-150.0,0.00010794,2]
[353355964,1739794232392,-150.0,0.00010826,2]
[353355965,1739794232401,-150.0,0.00010831,2]
[353355966,1739794232410,-150.0,0.00010871,2]
[353355967,1739794232419,-150.0,0.0001097,2]
[353355968,1739794232429,-150.0,0.00010972,2]
[353355969,1739794232439,-150.0,0.0001102,2]
[353355970,1739794232448,-150.0,0.00011044,2]
[353355971,1739794232457,-150.0,0.00011093,2]
[353355973,1739794232466,-150.0,0.00011123,2]
[353355975,1739794232475,-150.0,0.0001113,2]
[353355977,1739794232484,-150.0,0.00011131,2]
[353355979,1739794232494,-150.0,0.00011135,2]
[353355981,1739794232503,-150.0,0.00011174,2]
[353355983,1739794232512,-150.0,0.00011179,2]
[353355985,1739794232521,-280.29434076,0.00011224,2]
[353355987,1739794232535,-779.70565924,0.00011224,2]
[353355989,1739794232545,-150.0,0.00011262,2]
[353355991,1739794232554,-150.0,0.00011336,2]
[353355993,1739794232563,-1000.0,0.00011364,2]
[353355995,1739794232572,-153.2846615,0.00011393,2]
[353355997,1739794232583,-1000.0,0.00011428,2]
[353355999,1739794232592,-1000.0,0.00011428,2]
[353356001,1739794232601,-150.0,0.00011497,2]
[353356003,1739794232609,-150.0,0.00011499,2]
[353356005,1739794232619,-150.0,0.00011579,2]
[353356006,1739794232629,-150.0,0.0001161,2]
[353356008,1739794232639,-150.0,0.0001165,2]
[353356010,1739794232648,-150.0,0.00011659,2]
[353356013,1739794232657,-150.0,0.00011666,2]
[353356014,1739794232667,-150.0,0.00011672,2]
[353356016,1739794232677,-150.0,0.00011707,2]
[353356018,1739794232686,-150.0,0.00011713,2]
[353356020,1739794232696,-150.0,0.00011775,2]
[353356022,1739794232705,-150.0,0.00011796,2]
[353356024,1739794232715,-150.0,0.00011806,2]
[353356026,1739794232725,-1060.0,0.00011815,2]
[353356028,1739794232734,-150.0,0.00011876,2]
[353356030,1739794232744,-150.0,0.00011955,2]
[353356032,1739794232754,-150.0,0.00011964,2]
[353356034,1739794232763,-150.0,0.00011965,2]
[353356035,1739794232772,-150.0,0.00011981,2]
[353356036,1739794232782,-493.68,0.00011993,2]
[353356037,1739794232791,-600.0,0.00012,2]
[353356038,1739794232801,-150.0,0.00012054,2]
[353356039,1739794232810,-150.0,0.00012098,2]
[353356040,1739794232820,-150.0,0.00012128,2]
[353356041,1739794232829,-150.0,0.00012132,2]
[353356042,1739794232838,-150.0,0.00012144,2]
[353356043,1739794232848,-150.0,0.00012146,2]
[353356044,1739794232857,-150.0,0.00012186,2]
[353356045,1739794232866,-150.0,0.00012205,2]
[353356046,1739794232875,-150.0,0.00012275,2]
[353356047,1739794232884,-150.0,0.00012316,2]
[353356048,1739794232894,-150.0,0.00012343,2]
[353356049,1739794232903,-150.0,0.00012345,2]
[353356050,1739794232912,-150.0,0.00012366,2]
[353356051,1739794232922,-150.0,0.00012374,2]
[353356052,1739794232931,-1060.0,0.00012406,2]
[353356053,1739794232941,-150.0,0.00012415,2]
[353356054,1739794232951,-150.0,0.00012429,2]
[353356055,1739794232961,-150.0,0.00012452,2]
[353356056,1739794232970,-150.0,0.00012455,2]
[353356057,1739794232980,-150.0,0.0001246,2]
[353356058,1739794232989,-150.0,0.0001247,2]
[353356059,1739794233000,-150.0,0.00012476,2]
[353356060,1739794233010,-150.0,0.00012527,2]
[353356061,1739794233019,-250.0,0.00012596,2]
[353356062,1739794233028,-3432.76,0.00012606,2]
[353356063,1739794233038,-150.0,0.00012676,2]
[353356064,1739794233047,-300.0,0.00012676,2]
[353356065,1739794233057,-638.0,0.00012693,2]
[353356066,1739794233067,-1787.0,0.00012693,2]
[353356067,1739794233076,-1266.0,0.00012693,2]
[353356068,1739794233086,-784.0,0.00012693,2]
[353356069,1739794233095,-908.0,0.00012693,2]
[353356070,1739794233105,-2956.0,0.00012693,2]
[353356071,1739794233114,-539.0,0.00012693,2]
[353356072,1739794233124,-4027.0,0.00012693,2]
[353356073,1739794233134,-3509.981,0.00012693,2]
[353356074,1739794233143,-150.0,0.00012693,2]
[353356075,1739794233153,-150.0,0.00012745,2]
[353356076,1739794233162,-150.0,0.00012755,2]
[353356077,1739794233171,-150.0,0.0001277,2]
[353356078,1739794233180,-1000.0,0.00012785,2]
[353356079,1739794233189,-500.0,0.00012798,2]
[353356080,1739794233199,-1000.0,0.00012798,2]
[353356081,1739794233208,-1000.0,0.00012798,2]
[353356082,1739794233218,-150.0,0.00012833,2]
[353356083,1739794233228,-150.0,0.00012852,2]
[353356084,1739794233237,-150.0,0.00012854,2]
[353356085,1739794233247,-150.0,0.00012862,2]
[353356086,1739794233256,-96.40964357,0.00012996,2]
[353356087,1739794233281,-290.25171061,0.00012996,2]
[353356088,1739794233291,-30.02027945,0.00013026,2]
[353356089,1739794233302,-807.1452898,0.00013026,2]
[353356090,1739794233331,-222.83443075,0.00013026,2]
[353356091,1739794233340,-150.0,0.00013038,2]
[353356092,1739794233349,-115.26686815,0.00013149,2]
[353356093,1739794233360,-34.73313185,0.00013149,2]
[353356094,1739794233370,-156.923974,0.00013152,3]
[353356095,1739794233379,-1000.0,0.00013283,2]
[353356096,1739794233388,-493.68,0.00013325,2]
[353356097,1739794233397,-150.0,0.00013371,2]
[353356098,1739794233406,-150.0,0.0001341,2]
[353356099,1739794233415,-530.3112846,0.00013425,2]
[353356100,1739794233425,-150.0,0.00013462,2]
[353356101,1739794233434,-150.0,0.0001347,2]
[353356102,1739794233443,-439.11,0.00013498,2]
[353356103,1739794233452,-150.0,0.00013498,2]
[353356104,1739794233461,-150.0,0.00013498,2]
[353356105,1739794233471,-150.0,0.00013498,2]
[353356106,1739794233480,-439.11,0.00013498,2]
[353356107,1739794233489,-203.73,0.00013498,2]
[353356108,1739794233499,-244.81,0.00013498,2]
[353356109,1739794233508,-300.0,0.00013498,2]
[353356110,1739794233517,-150.0,0.00013498,2]
[353356111,1739794233527,-439.11,0.00013498,2]
[353356112,1739794233539,-150.0,0.00013498,2]
[353356113,1739794233548,-439.11,0.00013498,2]